{"text_format":"1","workbook":"xlsx","n_sheets":3,"sheets":["REP-1","Subsistence Worksheet Location1","Subsistence Worksheet Location2"],"not_rendered":{"charts":0,"images":0,"macros":1,"external_links":0,"defined_names":3,"comments":2,"pivot_tables":0},"unopened":[],"bounds":{"document_bytes":16777216,"sheet_cells":100000,"rows_first":2000,"rows_last":500,"rows_between":2000,"halvings":0,"cell_chars":16384,"cell_head_chars":4096},"cells_cut":0,"cells_raw":0,"read":"whole","date_system":"1900"}

{"sheet":"REP-1","index":0,"n_rows":374,"n_cols":38,"rows_kept":374,"cut":false,"hidden":false,"merged":[[81,10,81,15],[350,19,350,37],[351,0,351,8],[351,9,351,17],[351,19,352,37],[368,30,368,31],[370,0,371,2],[370,3,371,13],[370,14,371,15],[370,16,371,17],[370,19,371,21],[370,22,371,25],[370,27,370,28],[370,30,370,31],[362,0,363,2],[362,3,363,13],[362,14,363,15],[362,16,363,17],[362,19,363,21],[362,22,363,25],[362,27,362,28],[362,30,362,31],[370,35,371,37],[371,27,371,28],[371,30,371,31],[362,35,363,37],[363,27,363,28],[363,30,363,31],[364,0,365,2],[364,3,365,13],[364,14,365,15],[364,16,365,17],[372,6,372,13],[372,14,372,17],[372,19,372,27],[372,28,372,37],[373,1,373,3],[373,6,373,8],[373,19,373,30],[373,31,373,37],[366,0,367,2],[366,3,367,13],[366,14,367,15],[366,16,367,17],[366,19,367,21],[366,22,367,25],[366,27,366,28],[366,30,366,31],[366,35,367,37],[367,27,367,28],[367,30,367,31],[368,0,369,2],[368,3,369,13],[368,14,369,15],[368,16,369,17],[368,19,369,21],[368,22,369,25],[368,35,369,37],[369,27,369,28],[369,30,369,31],[368,27,368,28],[364,30,364,31],[364,35,365,37],[365,27,365,28],[365,30,365,31],[358,0,359,2],[358,3,359,13],[358,14,359,15],[358,16,359,17],[358,19,359,21],[358,22,359,25],[358,27,358,28],[358,30,358,31],[358,35,359,37],[359,27,359,28],[359,30,359,31],[360,0,361,2],[360,3,361,13],[360,14,361,15],[360,16,361,17],[360,19,361,21],[360,22,361,25],[360,27,360,28],[360,35,361,37],[361,27,361,28],[361,30,361,31],[360,30,360,31],[364,19,365,21],[364,22,365,25],[364,27,364,28],[354,0,355,2],[354,3,355,13],[354,14,355,15],[354,16,355,17],[354,19,355,21],[354,22,355,25],[354,27,354,28],[354,30,354,31],[354,35,355,37],[355,27,355,28],[355,30,355,31],[356,0,357,2],[356,3,357,13],[356,14,357,15],[356,16,357,17],[356,19,357,21],[356,22,357,25],[356,27,356,28],[356,30,356,31],[356,35,357,37],[357,27,357,28],[357,30,357,31],[352,0,352,1],[352,2,352,17],[353,0,353,2],[353,3,353,13],[353,14,353,15],[353,16,353,17],[353,19,353,21],[353,22,353,25],[353,26,353,28],[353,29,353,31],[353,32,353,34],[353,35,353,37],[345,0,346,2],[345,3,346,13],[345,14,346,15],[345,16,346,17],[345,19,346,21],[345,22,346,25],[345,27,345,28],[345,30,345,31],[345,35,346,37],[346,27,346,28],[346,30,346,31],[347,6,347,13],[347,14,347,17],[347,19,347,27],[347,28,347,37],[348,1,348,3],[348,6,348,8],[348,19,348,30],[348,31,348,37],[350,0,350,17],[341,0,342,2],[341,3,342,13],[341,14,342,15],[341,16,342,17],[341,19,342,21],[341,22,342,25],[341,27,341,28],[341,30,341,31],[341,35,342,37],[342,27,342,28],[342,30,342,31],[343,0,344,2],[343,3,344,13],[343,14,344,15],[343,16,344,17],[343,19,344,21],[343,22,344,25],[343,35,344,37],[344,27,344,28],[344,30,344,31],[343,27,343,28],[343,30,343,31],[337,0,338,2],[337,3,338,13],[337,14,338,15],[337,16,338,17],[337,19,338,21],[337,22,338,25],[337,27,337,28],[337,30,337,31],[337,35,338,37],[338,27,338,28],[338,30,338,31],[339,0,340,2],[339,3,340,13],[339,14,340,15],[339,16,340,17],[339,19,340,21],[339,22,340,25],[339,27,339,28],[339,30,339,31],[339,35,340,37],[340,27,340,28],[340,30,340,31],[333,0,334,2],[333,3,334,13],[333,14,334,15],[333,16,334,17],[333,19,334,21],[333,22,334,25],[333,27,333,28],[333,30,333,31],[333,35,334,37],[334,27,334,28],[334,30,334,31],[335,0,336,2],[335,3,336,13],[335,14,336,15],[335,16,336,17],[335,19,336,21],[335,22,336,25],[335,27,335,28],[335,30,335,31],[335,35,336,37],[336,27,336,28],[336,30,336,31],[329,0,330,2],[329,3,330,13],[329,14,330,15],[329,16,330,17],[329,19,330,21],[329,22,330,25],[329,27,329,28],[329,30,329,31],[329,35,330,37],[330,27,330,28],[330,30,330,31],[331,0,332,2],[331,3,332,13],[331,14,332,15],[331,16,332,17],[331,19,332,21],[331,22,332,25],[331,27,331,28],[331,30,331,31],[331,35,332,37],[332,27,332,28],[332,30,332,31],[325,0,325,17],[325,19,325,37],[326,0,326,8],[326,9,326,17],[326,19,327,37],[327,0,327,1],[327,2,327,17],[328,0,328,2],[328,3,328,13],[328,14,328,15],[328,16,328,17],[328,19,328,21],[328,22,328,25],[328,26,328,28],[328,29,328,31],[328,32,328,34],[328,35,328,37],[320,0,321,2],[320,3,321,13],[320,14,321,15],[320,16,321,17],[320,19,321,21],[320,22,321,25],[320,27,320,28],[320,30,320,31],[320,35,321,37],[321,27,321,28],[321,30,321,31],[322,6,322,13],[322,14,322,17],[322,19,322,27],[322,28,322,37],[323,1,323,3],[323,6,323,8],[323,19,323,30],[323,31,323,37],[316,0,317,2],[316,3,317,13],[316,14,317,15],[316,16,317,17],[316,19,317,21],[316,22,317,25],[316,27,316,28],[316,30,316,31],[316,35,317,37],[317,27,317,28],[317,30,317,31],[318,0,319,2],[318,3,319,13],[318,14,319,15],[318,16,319,17],[318,19,319,21],[318,22,319,25],[318,35,319,37],[319,27,319,28],[319,30,319,31],[318,27,318,28],[318,30,318,31],[312,0,313,2],[312,3,313,13],[312,14,313,15],[312,16,313,17],[312,19,313,21],[312,22,313,25],[312,27,312,28],[312,30,312,31],[312,35,313,37],[313,27,313,28],[313,30,313,31],[314,0,315,2],[314,3,315,13],[314,14,315,15],[314,16,315,17],[314,19,315,21],[314,22,315,25],[314,27,314,28],[314,30,314,31],[314,35,315,37],[315,27,315,28],[315,30,315,31],[310,0,311,2],[310,3,311,13],[310,14,311,15],[310,16,311,17],[310,19,311,21],[310,22,311,25],[310,27,310,28],[310,30,310,31],[310,35,311,37],[311,27,311,28],[311,30,311,31],[306,19,307,21],[306,22,307,25],[306,35,307,37],[308,0,309,2],[308,3,309,13],[308,14,309,15],[308,16,309,17],[308,19,309,21],[308,22,309,25],[308,27,308,28],[308,30,308,31],[308,35,309,37],[309,27,309,28],[309,30,309,31],[306,27,306,28],[306,30,306,31],[293,30,293,31],[285,0,286,2],[285,3,286,13],[285,14,286,15],[285,16,286,17],[285,19,286,21],[285,22,286,25],[285,35,286,37],[287,0,288,2],[287,3,288,13],[287,35,288,37],[289,0,290,2],[289,3,290,13],[289,14,290,15],[289,16,290,17],[291,0,292,2],[291,3,292,13],[291,14,292,15],[260,35,261,37],[261,27,261,28],[261,30,261,31],[262,0,263,2],[262,3,263,13],[262,14,263,15],[262,16,263,17],[262,19,263,21],[262,22,263,25],[262,27,262,28],[262,30,262,31],[262,35,263,37],[263,27,263,28],[263,30,263,31],[283,0,284,2],[283,3,284,13],[283,14,284,15],[283,16,284,17],[283,19,284,21],[283,22,284,25],[268,16,269,17],[268,19,269,21],[268,22,269,25],[268,35,269,37],[270,0,271,2],[270,3,271,13],[270,14,271,15],[270,16,271,17],[270,19,271,21],[270,22,271,25],[270,35,271,37],[272,6,272,13],[235,0,236,2],[235,3,236,13],[235,14,236,15],[235,16,236,17],[235,19,236,21],[235,22,236,25],[235,35,236,37],[235,30,235,31],[236,27,236,28],[236,30,236,31],[234,27,234,28],[234,30,234,31],[235,27,235,28],[245,14,246,15],[245,16,246,17],[245,19,246,21],[245,22,246,25],[245,27,245,28],[245,30,245,31],[245,35,246,37],[246,27,246,28],[246,30,246,31],[243,27,243,28],[243,30,243,31],[237,30,237,31],[239,30,239,31],[239,35,240,37],[240,27,240,28],[240,30,240,31],[241,0,242,2],[241,3,242,13],[241,14,242,15],[229,27,229,28],[229,30,229,31],[229,35,230,37],[231,0,232,2],[231,3,232,13],[231,14,232,15],[231,16,232,17],[231,19,232,21],[231,22,232,25],[231,35,232,37],[233,0,234,2],[233,3,234,13],[233,14,234,15],[233,16,234,17],[233,19,234,21],[233,22,234,25],[233,35,234,37],[230,27,230,28],[230,30,230,31],[231,27,231,28],[233,27,233,28],[233,30,233,31],[231,30,231,31],[232,27,232,28],[232,30,232,31],[229,0,230,2],[229,3,230,13],[229,14,230,15],[229,16,230,17],[229,19,230,21],[229,22,230,25],[220,0,221,2],[220,3,221,13],[220,14,221,15],[220,16,221,17],[220,19,221,21],[220,22,221,25],[220,35,221,37],[222,6,222,13],[222,14,222,17],[222,19,222,27],[222,28,222,37],[221,27,221,28],[221,30,221,31],[223,6,223,8],[223,19,223,30],[223,31,223,37],[220,27,220,28],[220,30,220,31],[223,1,223,3],[204,16,205,17],[204,19,205,21],[204,22,205,25],[204,35,205,37],[216,3,217,13],[216,14,217,15],[216,16,217,17],[216,19,217,21],[216,22,217,25],[216,35,217,37],[218,0,219,2],[218,3,219,13],[218,14,219,15],[218,16,219,17],[218,19,219,21],[218,22,219,25],[218,35,219,37],[210,0,211,2],[210,3,211,13],[219,27,219,28],[219,30,219,31],[217,27,217,28],[217,30,217,31],[218,27,218,28],[218,30,218,31],[215,27,215,28],[215,30,215,31],[216,27,216,28],[216,30,216,31],[214,0,215,2],[214,3,215,13],[214,14,215,15],[198,6,198,8],[198,19,198,30],[198,31,198,37],[200,0,200,17],[200,19,200,37],[201,0,201,8],[201,9,201,17],[201,19,202,37],[202,0,202,1],[202,2,202,17],[203,26,203,28],[203,29,203,31],[203,32,203,34],[206,0,207,2],[206,3,207,13],[206,14,207,15],[206,16,207,17],[206,19,207,21],[206,22,207,25],[206,27,206,28],[206,30,206,31],[206,35,207,37],[207,27,207,28],[207,30,207,31],[203,0,203,2],[204,27,204,28],[204,30,204,31],[205,27,205,28],[205,30,205,31],[204,0,205,2],[204,3,205,13],[204,14,205,15],[193,30,193,31],[191,0,192,2],[189,0,190,2],[189,14,190,15],[189,16,190,17],[189,19,190,21],[189,22,190,25],[189,27,189,28],[189,30,189,31],[189,35,190,37],[190,27,190,28],[190,30,190,31],[191,30,191,31],[189,3,190,13],[191,35,192,37],[192,27,192,28],[192,30,192,31],[193,22,194,25],[273,31,273,37],[251,0,251,8],[251,9,251,17],[251,19,252,37],[154,35,155,37],[154,30,154,31],[160,0,161,2],[160,3,161,13],[160,14,161,15],[160,16,161,17],[160,19,161,21],[160,22,161,25],[160,27,160,28],[160,30,160,31],[160,35,161,37],[161,27,161,28],[161,30,161,31],[162,0,163,2],[162,3,163,13],[162,14,163,15],[162,16,163,17],[162,19,163,21],[162,22,163,25],[162,27,162,28],[162,30,162,31],[162,35,163,37],[163,27,163,28],[163,30,163,31],[155,27,155,28],[156,30,156,31],[157,30,157,31],[156,27,156,28],[305,27,305,28],[305,30,305,31],[295,3,296,13],[295,14,296,15],[291,16,292,17],[291,19,292,21],[291,22,292,25],[291,27,291,28],[291,30,291,31],[291,35,292,37],[292,27,292,28],[292,30,292,31],[156,35,157,37],[179,0,180,2],[179,3,180,13],[179,14,180,15],[179,16,180,17],[179,19,180,21],[179,22,180,25],[179,35,180,37],[181,0,182,2],[181,3,182,13],[181,14,182,15],[181,16,182,17],[181,19,182,21],[181,22,182,25],[181,35,182,37],[193,27,193,28],[272,28,272,37],[273,1,273,3],[273,6,273,8],[273,19,273,30],[279,27,279,28],[279,30,279,31],[279,35,280,37],[280,27,280,28],[280,30,280,31],[289,19,290,21],[289,22,290,25],[304,27,304,28],[293,0,294,2],[293,3,294,13],[293,14,294,15],[294,27,294,28],[294,30,294,31],[287,14,288,15],[287,16,288,17],[287,19,288,21],[287,22,288,25],[304,30,304,31],[297,19,297,27],[297,28,297,37],[298,1,298,3],[298,6,298,8],[298,19,298,30],[298,31,298,37],[300,0,300,17],[300,19,300,37],[301,0,301,8],[301,9,301,17],[301,19,302,37],[302,0,302,1],[302,2,302,17],[293,27,293,28],[252,0,252,1],[252,2,252,17],[253,26,253,28],[253,29,253,31],[253,32,253,34],[254,0,255,2],[254,3,255,13],[254,14,255,15],[237,0,238,2],[237,3,238,13],[237,14,238,15],[237,16,238,17],[237,19,238,21],[237,22,238,25],[237,35,238,37],[239,0,240,2],[239,3,240,13],[239,14,240,15],[239,16,240,17],[239,19,240,21],[239,22,240,25],[238,27,238,28],[238,30,238,31],[239,27,239,28],[237,27,237,28],[241,16,242,17],[241,19,242,21],[241,22,242,25],[241,27,241,28],[241,30,241,31],[241,35,242,37],[242,27,242,28],[168,3,169,13],[166,3,167,13],[164,3,165,13],[168,0,169,2],[166,0,167,2],[164,0,165,2],[169,27,169,28],[170,27,170,28],[171,27,171,28],[169,30,169,31],[170,30,170,31],[171,30,171,31],[170,35,171,37],[170,0,171,2],[170,3,171,13],[168,35,169,37],[166,35,167,37],[164,35,165,37],[168,22,169,25],[166,22,167,25],[164,22,165,25],[168,16,169,17],[168,14,169,15],[166,16,167,17],[166,14,167,15],[164,16,165,17],[164,30,164,31],[165,30,165,31],[166,30,166,31],[167,30,167,31],[164,27,164,28],[166,27,166,28],[216,0,217,2],[208,0,209,2],[208,3,209,13],[208,14,209,15],[208,16,209,17],[208,19,209,21],[208,22,209,25],[208,27,208,28],[203,14,203,15],[203,16,203,17],[203,19,203,21],[203,22,203,25],[203,35,203,37],[203,3,203,13],[214,30,214,31],[211,30,211,31],[191,3,192,13],[191,14,192,15],[191,16,192,17],[191,19,192,21],[191,22,192,25],[191,27,191,28],[197,6,197,13],[197,14,197,17],[197,19,197,27],[208,30,208,31],[208,35,209,37],[209,27,209,28],[209,30,209,31],[210,14,211,15],[210,16,211,17],[210,19,211,21],[196,30,196,31],[193,35,194,37],[194,27,194,28],[194,30,194,31],[195,0,196,2],[195,3,196,13],[195,14,196,15],[195,16,196,17],[195,19,196,21],[195,22,196,25],[214,16,215,17],[214,19,215,21],[214,22,215,25],[214,35,215,37],[212,0,213,2],[212,3,213,13],[212,14,213,15],[212,16,213,17],[212,19,213,21],[212,22,213,25],[212,27,212,28],[212,30,212,31],[212,35,213,37],[210,22,211,25],[210,27,210,28],[210,30,210,31],[210,35,211,37],[211,27,211,28],[213,27,213,28],[213,30,213,31],[197,28,197,37],[214,27,214,28],[195,27,195,28],[195,30,195,31],[195,35,196,37],[198,1,198,3],[187,27,187,28],[187,30,187,31],[188,27,188,28],[188,30,188,31],[187,0,188,2],[187,3,188,13],[187,14,188,15],[187,16,188,17],[187,19,188,21],[187,22,188,25],[187,35,188,37],[185,27,185,28],[185,30,185,31],[186,27,186,28],[186,30,186,31],[185,0,186,2],[185,3,186,13],[185,14,186,15],[185,16,186,17],[185,19,186,21],[185,22,186,25],[185,35,186,37],[193,0,194,2],[193,3,194,13],[193,14,194,15],[193,16,194,17],[193,19,194,21],[196,27,196,28],[183,27,183,28],[183,30,183,31],[184,27,184,28],[184,30,184,31],[183,0,184,2],[183,3,184,13],[183,14,184,15],[183,16,184,17],[183,19,184,21],[183,22,184,25],[183,35,184,37],[170,14,171,15],[170,16,171,17],[170,19,171,21],[180,27,180,28],[180,30,180,31],[181,27,181,28],[181,30,181,31],[182,27,182,28],[182,30,182,31],[170,22,171,25],[175,19,175,37],[176,0,176,8],[176,9,176,17],[176,19,177,37],[177,0,177,1],[177,2,177,17],[178,14,178,15],[178,16,178,17],[178,19,178,21],[178,22,178,25],[178,26,178,28],[178,29,178,31],[178,32,178,34],[178,35,178,37],[179,27,179,28],[179,30,179,31],[172,19,172,27],[172,28,172,37],[173,19,173,30],[173,31,173,37],[178,0,178,2],[178,3,178,13],[173,6,173,8],[173,1,173,3],[175,0,175,17],[155,30,155,31],[154,27,154,28],[172,14,172,17],[164,14,165,15],[172,6,172,13],[168,30,168,31],[168,27,168,28],[168,19,169,21],[158,0,159,2],[158,3,159,13],[158,14,159,15],[158,16,159,17],[158,19,159,21],[158,22,159,25],[158,27,158,28],[158,30,158,31],[158,35,159,37],[159,27,159,28],[167,27,167,28],[153,0,153,2],[153,3,153,13],[166,19,167,21],[164,19,165,21],[159,30,159,31],[154,0,155,2],[154,3,155,13],[154,14,155,15],[154,16,155,17],[154,22,155,25],[154,19,155,21],[156,0,157,2],[156,3,157,13],[156,14,157,15],[156,16,157,17],[156,19,157,21],[156,22,157,25],[165,27,165,28],[157,27,157,28],[153,35,153,37],[153,32,153,34],[153,29,153,31],[153,26,153,28],[150,0,150,17],[135,0,135,37],[136,0,136,37],[141,1,141,37],[142,1,142,37],[147,0,147,9],[147,13,147,37],[144,7,144,28],[146,11,146,28],[145,29,145,30],[148,17,148,24],[148,5,148,13],[151,19,152,37],[151,0,151,8],[151,9,151,17],[152,0,152,1],[152,2,152,17],[153,16,153,17],[153,14,153,15],[153,22,153,25],[153,19,153,21],[150,19,150,37],[144,29,144,30],[138,1,138,36],[139,1,139,36],[145,9,145,28],[146,29,146,30],[144,31,144,37],[111,1,111,37],[113,1,113,37],[115,1,115,37],[121,1,121,37],[99,33,99,34],[123,1,123,37],[120,22,120,25],[120,1,120,21],[120,26,120,37],[124,1,124,37],[132,1,132,37],[133,1,133,37],[134,1,134,12],[134,13,134,37],[117,1,117,37],[118,1,118,37],[102,33,102,34],[103,33,103,34],[104,33,104,34],[99,0,99,31],[100,0,100,31],[101,0,101,7],[102,1,102,31],[103,1,103,31],[104,1,104,31],[106,0,106,9],[109,1,109,37],[100,33,100,34],[101,33,101,34],[94,0,94,8],[95,33,95,34],[96,33,96,34],[97,33,97,34],[98,33,98,34],[95,0,95,31],[96,0,96,31],[97,0,97,31],[98,0,98,31],[82,28,82,37],[85,28,85,37],[86,28,86,37],[88,6,88,9],[83,28,83,37],[84,0,84,1],[84,2,84,9],[84,10,84,15],[84,16,84,21],[84,22,84,27],[84,28,84,37],[92,0,92,37],[91,0,91,23],[91,26,91,27],[91,30,91,31],[89,4,89,8],[79,10,79,15],[80,10,80,15],[88,22,88,27],[88,16,88,21],[88,10,88,15],[90,0,90,9],[90,10,90,15],[82,2,82,9],[85,2,85,9],[86,2,86,9],[87,2,87,9],[82,0,82,1],[87,0,87,1],[86,0,86,1],[85,0,85,1],[83,0,83,1],[83,2,83,9],[83,10,83,15],[83,16,83,21],[83,22,83,27],[90,19,90,23]],"merged_total":1486,"flags":["merged_cut"]}
["Trade Adjustment Assistance Reemployment and Training Plan"]
[]
["1. Customer and Certification"]
[" Name:",null,null,null,null,null,null,null,null,null,null,null,"Application \nDate:",null,null,null,null,null,null,null,"Waiver / In-Training \nDeadline Date:",null,null,null,null,null,null,null,null,null,"TWIST ID #:"]
["Petition #:",null,null,null,null,null,null,null,null,null,null,null,"State:",null,null,null,null,null,null,null,"Amendment #:",null,null,null,null,null,null,null,null,null,"Date:"]
["Trade Act of",null,null,null,null,null,1974,null,null,null,2002,null,null,null,2009,null,null,null,2011,null,null,null,2015]
[]
["2. Reemployment Information"]
["The applicant’s Average Weekly Wage (AWW)",null,null,null,null,null,null,null,null,null,null,null,null,null,"Quarter used:",null,null,null,"",null,"Amount of Quarter:",null,null,null,null,null,null,null,null,null,null,"AWW:",null,null,{"$f":"AA9/13","v":0}]
["Are there jobs available in applicant’s normal commuting area, using this applicant’s existing job skills, and paying at least\n",null,null,null,null,null,null,null,null,null,null,null,null,null,null,null,null,null,null,null,null,null,null,null,null,null,null,null,null,null,null,null,null,null,{"$f":"SUM(AI9)*0.8","v":0},null,null,"?\n"]
[null,null,"Yes       ",null,null,null,"No",null,null,null,null,null,null,null,null,null,null,null,null,null,null,null,null,null,null,null,null,null,null,null,null,null,null,null,"(80% of AWW)"]
["Is the applicant willing to relocate?                    ",null,null,null,null,null,null,null,null,null,null,null," Yes      ",null,null,null," No",null,"If so, where?"]
["Source of labor market information (LMI) provided:"]
[]
[null,"Other",null,"(Specify):"]
["Current occupational skills:"]
["Date waiver issued:",null,null,null,null,null,null,null,null,null,null,null,null,null,"Waiver Reason:"]
["*The first two sections must be completed at initial intake.  The waiver information must be listed once a waiver is issued."]
[]
["3. Occupation Information"]
["Occupation:",null,null,null,null,null,null,null,null,null,null,null,null,null,null,null,null,null,null,null,null,null,null,null,null,"Date of Training Request:"]
["Specify minimum education level, licenses, or certifications generally required for this occupation:"]
["If a licensed occupation, does the applicant have a conviction history?",null,null,null,null,null,null,null,null,null,null,null,null,null,null,null,null,null,null,null,null,null,"Yes",null,null,null,null,"No"]
["If conviction exists, has licensing authority issued a preliminary evaluation of license eligibility for the applicant?",null,null,null,null,null,null,null,null,null,null,null,null,null,null,null,null,null,null,null,null,null,null,null,null,null,null,null,null,null,null,null,null,"Yes",null,null,null,"No"]
["Expected entry level wage:"]
["Assessment type and scores (Previous degrees, school and/or Workforce Solutions Office assessment):"]
["Training program requires:",null,null,null,null,null,null,null,null,null,"Remedial (ESL, GED, Developmental)",null,null,null,null,null,null,null,null,null,null,null,"Prerequisites",null,null,null,null,"Training full time?",null,null,null,null,null,"Yes      ",null,null,null,"No"]
["Is the length of training within the allowable TAA regulations?\n",null,null,null,null,null,null,null,null,null,null,null,null,null,null,null,null,null,null,"Yes",null,null,"No"]
["Remedial weeks in training:",null,null,null,null,null,null,null,null,null,"",null,null,"Prerequisite weeks in training:",null,null,null,null,null,null,null,null,null,null,null,null,null,"Total weeks of training:"]
[]
["4. Training Institution Information (only institutions worker will actually attend)"]
["Name of Training Institution 1:"]
["Street Address:"]
["City:",null,null,null,null,null,null,null,null,null,null,null,null,null,null,null,null,"State:",null,null,null,null,null,null,null,null,null,null,null,"Zip:"]
["Training Period:",null,null,null,null,null,null,null,null,null,null,"to",null,null,null,null,null,null,null,null,null,null,null,null,"Number of training days per week:"]
["Degree/Program Name (Specific credential): "]
["Is this institution approved by Texas Education Agency (TEA), Texas Higher Education Coordinating Board, Texas Workforce Commission (TWC), or"]
["regulated by an accredited board?",null,null,null,null,null,null,null,null,null,null,null,"Yes",null,null,null,"No"]
["Has the training provider accepted the trade-affected worker into the proposed training program?    ",null,null,null,null,null,null,null,null,null,null,null,null,null,null,null,null,null,null,null,null,null,null,null,null,null,null,null,null,"Yes",null,null,null,"No"]
[]
["Name of Training Institution 2:"]
["Street Address:"]
["City:",null,null,null,null,null,null,null,null,null,null,null,null,null,null,null,null,"State:",null,null,null,null,null,null,null,null,null,null,null,"Zip:"]
["Training Period:",null,null,null,null,null,null,null,null,null,null,"to",null,null,null,null,null,null,null,null,null,null,null,null,"Number of training days per week:"]
["Degree/Program Name (Specific credential): "]
["Approved by Texas Education Agency (TEA), Texas Higher Education Coordinating Board, Texas Workforce Commission (TWC), or"]
["regulated by an accredited board?",null,null,null,null,null,null,null,null,null,null,null,"Yes",null,null,null,"No"]
["Has the training provider accepted the trade-affected worker into the proposed training program?    ",null,null,null,null,null,null,null,null,null,null,null,null,null,null,null,null,null,null,null,null,null,null,null,null,null,null,null,null,"Yes",null,null,null,"No"]
[]
["5. Transportation and Subsistence Payment Calculation"]
["Is the distance from the applicant’s home to training facility greater than 25 miles one way?",null,null,null,null,null,null,null,null,null,null,null,null,null,null,null,null,null,null,null,null,null,null,null,null,null,null,null,"Yes",null,null,null,"No"]
["If yes, see Subsistence Calculation Worksheet "]
[]
["6. Holiday and Break Schedule "]
["Training Break(s)*",null,null,null,null,null,null,null,null,null,null,null,null,"Starting Date",null,null,null,null,null,null,null,null,null,null,null,"Ending Date"]
[]
[]
[]
[]
["*Only include breaks of more than 30 school days, excluding Saturdays, Sundays and state or federal holidays."]
[]
["7. Books, Tools, Supplies, etc."]
["TAA only funds required books, tools, and supplies listed on course catalog or syllabus.  *Back up documentation must be on file."]
["Semester",null,null,null,null,null,null,null,null,null,null,null,null,null,"Books\n$",null,null,"*Tools\n$",null,null,"*Supplies\n$",null,null,"*Test/License Fees\n$",null,null,null,null,null,"*Other (Specify)\n$"]
[]
[]
[]
[]
[]
[]
[]
[]
[]
["Total Cost - All Semesters",null,null,null,null,null,null,null,{"$f":"SUM(O65:Q73,R65:T73,U65:W73,X65:AC73,AD65:AF73)","v":0},null,null,null,null,null,{"$f":"SUM(O65:Q73)","v":0},null,null,{"$f":"SUM(R65:T73)","v":0},null,null,{"$f":"SUM(U65:W73)","v":0},null,null,{"$f":"SUM(X65:AC73)","v":0},null,null,null,null,null,{"$f":"SUM(AD65:AF73)","v":0}]
[]
["8. Estimated Cost of Training"]
["Institution Name:",null,null,null,null,null,null,null,null,null,{"$f":"J32","v":0},null,null,null,null,null,{"$f":"J41","v":0}]
["Description",null,null,null,null,null,null,null,null,null,"TAA Institution 1\n$",null,null,null,null,null,"TAA Institution 2\n$",null,null,null,null,null,"Other Funding\n$",null,null,null,null,null,"Specify Other Funding Sources"]
["Tuition"]
["Fees"]
["Books, Tools, Supplies, etc."]
["Transportation/Subsistence Costs ",null,null,null,null,null,null,null,null,null,{"$f":"'Subsistence Worksheet Location1'!J24","v":0},null,null,null,null,null,{"$f":"'Subsistence Worksheet Location2'!J24","v":0}]
["Other"]
["Other"]
["Other"]
["Other"]
["Other"]
["Other"]
[null,null,null,null,null,null,"Total Costs",null,null,null,{"$f":"SUM(K79:P88)","v":0},null,null,null,null,null,{"$f":"SUM(Q79:V88)","v":0},null,null,null,null,null,{"$f":"SUM(W79:AB88)","v":0}]
[null,null,null,null,"Include 10%",null,null,null,null,null,{"$f":"SUMIF(J90:J90,TRUE,R90)","v":0},null,null,null,null,null,null,{"$f":"SUM(K89+Q89+W89)*0.1","v":0}]
["Total TAA Estimated Training Costs",null,null,null,null,null,null,null,null,null,{"$f":"SUM(K79:P88,Q79:V88,W79:AB88)+K90","v":0},null,null,null,null,null,null,null,null,"Total Other Funding Sources",null,null,null,null,{"$f":"SUM(W79:AB82)","v":0}]
["Does the total cost of the TAA-funded training exceed the reasonable cost standard?*",null,null,null,null,null,null,null,null,null,null,null,null,null,null,null,null,null,null,null,null,null,null,null,null,null,"Yes",null,null,null,"No"]
["*If yes, mark approval criterion #6 (Reasonable Cost) “No” and forward to the TAA state office for review and approval."]
[]
[" 9. Training Justification"]
["1.  Suitable employment is unavailable. ",null,null,null,null,null,null,null,null,null,null,null,null,null,null,null,null,null,null,null,null,null,null,null,null,null,null,null,null,null,null,null,null,"Yes",null,null,null,"No"]
["2.  The worker will benefit from appropriate training.",null,null,null,null,null,null,null,null,null,null,null,null,null,null,null,null,null,null,null,null,null,null,null,null,null,null,null,null,null,null,null,null,"Yes",null,null,null,"No"]
["3.  There is a reasonable expectation of employment following completion of training.",null,null,null,null,null,null,null,null,null,null,null,null,null,null,null,null,null,null,null,null,null,null,null,null,null,null,null,null,null,null,null,null,"Yes",null,null,null,"No"]
["4.  The training is reasonably available from a private or public school regulated by a state agency.",null,null,null,null,null,null,null,null,null,null,null,null,null,null,null,null,null,null,null,null,null,null,null,null,null,null,null,null,null,null,null,null,"Yes",null,null,null,"No"]
["5.  The worker is qualified to undertake and complete the training.",null,null,null,null,null,null,null,null,null,null,null,null,null,null,null,null,null,null,null,null,null,null,null,null,null,null,null,null,null,null,null,null,"Yes",null,null,null,"No"]
["6.  The training is available at both a reasonable cost and the lowest cost available for the occupation.\n      If no, justification approved by TWC Trade Services.  ",null,null,null,null,null,null,null,null,null,null,null,null,null,null,null,null,null,null,null,null,null,null,null,null,null,null,null,null,null,null,null,null,"Yes",null,null,null,"No"]
["Additional Considerations:"]
[null,"1.  Training program can be completed within statutory limitations (104/130/156 weeks, depending on petition)",null,null,null,null,null,null,null,null,null,null,null,null,null,null,null,null,null,null,null,null,null,null,null,null,null,null,null,null,null,null,null,"Yes",null,null,null,"No"]
[null,"2.  Self-financing of required training costs is not required of customer.",null,null,null,null,null,null,null,null,null,null,null,null,null,null,null,null,null,null,null,null,null,null,null,null,null,null,null,null,null,null,null,"Yes",null,null,null,"No"]
[null,"3.  If petition is under 70,000, training is full time; if petition is over 70,000, training can be part time without \n     Trade Readjustment Assistance (TRA).",null,null,null,null,null,null,null,null,null,null,null,null,null,null,null,null,null,null,null,null,null,null,null,null,null,null,null,null,null,null,null,"Yes",null,null,null,"No"]
[]
["10. Worker Responsibilities"]
["The worker has been informed of the following:"]
[]
[null,"The potential entry level wage or salary of the selected occupation. "]
[]
[null,"The training program must be amended and approved prior to any changes in the curriculum or sequence of courses. "]
[]
[null,"The worker must inform his or her case manager immediately if he or she withdraws from training or courses."]
[]
[null,"The worker must submit grades/transcript to his or her case manager at the end of each semester. "]
[]
[null,"The worker must provide his or her case manager the appropriate benchmark documentation at intervals of no more than 60 days,"]
[null,"indicating progress, and must maintain monthly contact with case manager, and may be required to provide benchmarks at 30-day intervals."]
[]
[null,"Completion of the Reemployment and Training Plan (REP) is scheduled for ",null,null,null,null,null,null,null,null,null,null,null,null,null,null,null,null,null,null,null,null,null,null,null,null,"; the worker must notify his or her case"]
[null,"manager immediately if the worker falls behind schedule or wishes to change the sequence of courses on his or her degree plan."]
[]
[null,"The worker is expected to meet all listed benchmarks contained in this REP. Failure to achieve benchmarks on two occasions can\n"]
[null,"result in denial of completion TRA (if applicable) or termination of this REP. "]
[]
[null,"TRA cannot be paid for breaks in training of more than 30 days.  "]
[]
[null,"TRA  is only paid to while attending full-time TAA-approved training.  For additional clarification, contact TRA at 512-463-2999. "]
[]
[null,"TRA payment for the entire duration of training is not assured.  "]
[]
[null,"The worker must have sufficient financial resources to continue training for periods when TRA is not paid.\n"]
[null,"In the space below, the worker must write a statement demonstrating that adequate financial resources are available should TRA not "]
[null,"be available for duration of training:"]
[]
[]
[]
[null,"Completion TRA is available if the worker can complete training and secure his or her degree and/or credential within the allowable"]
[null," time frame. "]
[]
[null,"TAA training benefits provide for one training, certification, and/or degree per TAA eligibility.  \n"]
[]
[]
["Signature (Customer): ",null,null,null,null,null,null,null,null,null,null,null,null,null,null,null,null,null,null,null,null,null,null,null,null,null,null,null,null,"Date:                    /        /     "]
["Signature (WFS Office Staff): ",null,null,null,null,null,null,null,null,null,null,null,null,null,null,null,null,null,null,null,null,null,null,null,null,null,null,null,null,"Date:                    /        /     "]
["Signature (TAA/Merit Staff Approval):",null,null,null,null,null,null,null,null,null,null,null,null,null,null,null,null,null,null,null,null,null,null,null,null,null,null,null,null,"Date:                    /        /     "]
["Under TAA regulations, training is:",null,null,null,null,null,null,null,null,null,null,null,null,"approved by merit staff, or forwarded to TAA state office and"]
[null,null,null,null,null,"recommended for approval or",null,null,null,null,null,null,null,null,null,null,null,"recommended for denial."]
[]
["Curriculum Outline",null,null,null,null,null,null,null,null,null,null,null,null,null,null,null,null,null,null,"Benchmark Tracking"]
["Semester/Module Time Frame:",null,null,null,null,null,null,null,null,null,null,null,null,null,null,null,null,null,null,"Must be evaluated at intervals of no more than 60 days."]
["Year:"]
["Course\n#",null,null,"Course/Program Title",null,null,null,null,null,null,null,null,null,null,"Credit/\nClock\nHours",null,"Final\nGrade",null,null,"Date of\nBenchmark\nReview\nPeriod",null,null,"Type of\nDocumentation to\nVerify Progress",null,null,null,"Good\nAcademic\nStanding",null,null,"Training Will\nBe Completed \nwithin Approved\nTime Frame",null,null,"Warning\nIssued",null,null,"Date REP\nModified/\nAmended\n(if applicable)"]
[null,null,null,null,null,null,null,null,null,null,null,null,null,null,null,null,null,null,null,"",null,null,null,null,null,null,null," Yes",null,null," Yes"]
[null,null,null,null,null,null,null,null,null,null,null,null,null,null,null,null,null,null,null,null,null,null,null,null,null,null,null," No",null,null," No"]
[null,null,null,null,null,null,null,null,null,null,null,null,null,null,null,null,null,null,null,"",null,null,null,null,null,null,null," Yes",null,null," Yes"]
[null,null,null,null,null,null,null,null,null,null,null,null,null,null,null,null,null,null,null,null,null,null,null,null,null,null,null," No",null,null," No"]
[null,null,null,null,null,null,null,null,null,null,null,null,null,null,null,null,null,null,null,"",null,null,null,null,null,null,null," Yes",null,null," Yes"]
[null,null,null,null,null,null,null,null,null,null,null,null,null,null,null,null,null,null,null,null,null,null,null,null,null,null,null," No",null,null," No"]
[null,null,null,null,null,null,null,null,null,null,null,null,null,null,null,null,null,null,null,"",null,null,null,null,null,null,null," Yes",null,null," Yes"]
[null,null,null,null,null,null,null,null,null,null,null,null,null,null,null,null,null,null,null,null,null,null,null,null,null,null,null," No",null,null," No"]
[null,null,null,null,null,null,null,null,null,null,null,null,null,null,null,null,null,null,null,"",null,null,null,null,null,null,null," Yes",null,null," Yes"]
[null,null,null,null,null,null,null,null,null,null,null,null,null,null,null,null,null,null,null,null,null,null,null,null,null,null,null," No",null,null," No"]
[null,null,null,null,null,null,null,null,null,null,null,null,null,null,null,null,null,null,null,"",null,null,null,null,null,null,null," Yes",null,null," Yes"]
[null,null,null,null,null,null,null,null,null,null,null,null,null,null,null,null,null,null,null,null,null,null,null,null,null,null,null," No",null,null," No"]
[null,null,null,null,null,null,null,null,null,null,null,null,null,null,0,null,null,null,null,"",null,null,null,null,null,null,null," Yes",null,null," Yes"]
[null,null,null,null,null,null,null,null,null,null,null,null,null,null,null,null,null,null,null,null,null,null,null,null,null,null,null," No",null,null," No"]
[null,null,null,null,null,null,null,null,null,null,null,null,null,null,null,null,null,null,null,"",null,null,null,null,null,null,null," Yes",null,null," Yes"]
[null,null,null,null,null,null,null,null,null,null,null,null,null,null,null,null,null,null,null,null,null,null,null,null,null,null,null," No",null,null," No"]
[null,null,null,null,null,null,null,null,null,null,null,null,null,null,null,null,null,null,null,"",null,null,null,null,null,null,null," Yes",null,null," Yes"]
[null,null,null,null,null,null,null,null,null,null,null,null,null,null,null,null,null,null,null,null,null,null,null,null,null,null,null," No",null,null," No"]
["     ",null,null,null,"     ",null,"Total Credit/Clock Hours:",null,null,null,null,null,null,null,{"$f":"SUM(O155:P172)","v":0},null,null,null,null,"Date Final Grades/Transcript/\nRemedial levels reviewed and in file:"]
[null,"Part Time",null,null,null,null," Full Time ",null,null,null,null,null,null,null,null,null,null,null,null,"End of semester/module remedial level: "]
[]
["Curriculum Outline",null,null,null,null,null,null,null,null,null,null,null,null,null,null,null,null,null,null,"Benchmark Tracking"]
["Semester/Module Time Frame:",null,null,null,null,null,null,null,null,null,null,null,null,null,null,null,null,null,null,"Must be evaluated at intervals of no more than 60 days."]
["Year:"]
["Course\n#",null,null,"Course/Program Title",null,null,null,null,null,null,null,null,null,null,"Credit/\nClock\nHours",null,"Final\nGrade",null,null,"Date of\nBenchmark\nReview\nPeriod",null,null,"Type of\nDocumentation to\nVerify Progress",null,null,null,"Good\nAcademic\nStanding",null,null,"Training Will\nBe Completed \nwithin Approved\nTime Frame",null,null,"Warning\nIssued",null,null,"Date REP\nModified/\nAmended\n(if applicable)"]
[null,null,null,null,null,null,null,null,null,null,null,null,null,null,null,null,null,null,null,"",null,null,null,null,null,null,null," Yes",null,null," Yes"]
[null,null,null,null,null,null,null,null,null,null,null,null,null,null,null,null,null,null,null,null,null,null,null,null,null,null,null," No",null,null," No"]
[null,null,null,null,null,null,null,null,null,null,null,null,null,null,null,null,null,null,null,"",null,null,null,null,null,null,null," Yes",null,null," Yes"]
[null,null,null,null,null,null,null,null,null,null,null,null,null,null,null,null,null,null,null,null,null,null,null,null,null,null,null," No",null,null," No"]
[null,null,null,null,null,null,null,null,null,null,null,null,null,null,null,null,null,null,null,"",null,null,null,null,null,null,null," Yes",null,null," Yes"]
[null,null,null,null,null,null,null,null,null,null,null,null,null,null,null,null,null,null,null,null,null,null,null,null,null,null,null," No",null,null," No"]
[null,null,null,null,null,null,null,null,null,null,null,null,null,null,null,null,null,null,null,"",null,null,null,null,null,null,null," Yes",null,null," Yes"]
[null,null,null,null,null,null,null,null,null,null,null,null,null,null,null,null,null,null,null,null,null,null,null,null,null,null,null," No",null,null," No"]
[null,null,null,null,null,null,null,null,null,null,null,null,null,null,null,null,null,null,null,"",null,null,null,null,null,null,null," Yes",null,null," Yes"]
[null,null,null,null,null,null,null,null,null,null,null,null,null,null,null,null,null,null,null,null,null,null,null,null,null,null,null," No",null,null," No"]
[null,null,null,null,null,null,null,null,null,null,null,null,null,null,null,null,null,null,null,"",null,null,null,null,null,null,null," Yes",null,null," Yes"]
[null,null,null,null,null,null,null,null,null,null,null,null,null,null,null,null,null,null,null,null,null,null,null,null,null,null,null," No",null,null," No"]
[null,null,null,null,null,null,null,null,null,null,null,null,null,null,null,null,null,null,null,"",null,null,null,null,null,null,null," Yes",null,null," Yes"]
[null,null,null,null,null,null,null,null,null,null,null,null,null,null,null,null,null,null,null,null,null,null,null,null,null,null,null," No",null,null," No"]
[null,null,null,null,null,null,null,null,null,null,null,null,null,null,null,null,null,null,null,"",null,null,null,null,null,null,null," Yes",null,null," Yes"]
[null,null,null,null,null,null,null,null,null,null,null,null,null,null,null,null,null,null,null,null,null,null,null,null,null,null,null," No",null,null," No"]
[null,null,null,null,null,null,null,null,null,null,null,null,null,null,null,null,null,null,null,"",null,null,null,null,null,null,null," Yes",null,null," Yes"]
[null,null,null,null,null,null,null,null,null,null,null,null,null,null,null,null,null,null,null,null,null,null,null,null,null,null,null," No",null,null," No"]
["     ",null,null,null,"     ",null,"Total Credit/Clock Hours:",null,null,null,null,null,null,null,{"$f":"SUM(O180:P197)","v":0},null,null,null,null,"Date Final Grades/Transcript/\nRemedial levels reviewed and in file:"]
[null,"Part Time",null,null,null,null," Full Time ",null,null,null,null,null,null,null,null,null,null,null,null,"End of semester/module remedial level: "]
[]
["Curriculum Outline",null,null,null,null,null,null,null,null,null,null,null,null,null,null,null,null,null,null,"Benchmark Tracking"]
["Semester/Module Time Frame:",null,null,null,null,null,null,null,null,null,null,null,null,null,null,null,null,null,null,"Must be evaluated at intervals of no more than 60 days."]
["Year:"]
["Course\n#",null,null,"Course/Program Title",null,null,null,null,null,null,null,null,null,null,"Credit/\nClock\nHours",null,"Final\nGrade",null,null,"Date of\nBenchmark\nReview\nPeriod",null,null,"Type of\nDocumentation to\nVerify Progress",null,null,null,"Good\nAcademic\nStanding",null,null,"Training Will\nBe Completed \nwithin Approved\nTime Frame",null,null,"Warning\nIssued",null,null,"Date REP\nModified/\nAmended\n(if applicable)"]
[null,null,null,null,null,null,null,null,null,null,null,null,null,null,null,null,null,null,null,"",null,null,null,null,null,null,null," Yes",null,null," Yes"]
[null,null,null,null,null,null,null,null,null,null,null,null,null,null,null,null,null,null,null,null,null,null,null,null,null,null,null," No",null,null," No"]
[null,null,null,null,null,null,null,null,null,null,null,null,null,null,null,null,null,null,null,"",null,null,null,null,null,null,null," Yes",null,null," Yes"]
[null,null,null,null,null,null,null,null,null,null,null,null,null,null,null,null,null,null,null,null,null,null,null,null,null,null,null," No",null,null," No"]
[null,null,null,null,null,null,null,null,null,null,null,null,null,null,null,null,null,null,null,"",null,null,null,null,null,null,null," Yes",null,null," Yes"]
[null,null,null,null,null,null,null,null,null,null,null,null,null,null,null,null,null,null,null,null,null,null,null,null,null,null,null," No",null,null," No"]
[null,null,null,null,null,null,null,null,null,null,null,null,null,null,null,null,null,null,null,"",null,null,null,null,null,null,null," Yes",null,null," Yes"]
[null,null,null,null,null,null,null,null,null,null,null,null,null,null,null,null,null,null,null,null,null,null,null,null,null,null,null," No",null,null," No"]
[null,null,null,null,null,null,null,null,null,null,null,null,null,null,null,null,null,null,null,"",null,null,null,null,null,null,null," Yes",null,null," Yes"]
[null,null,null,null,null,null,null,null,null,null,null,null,null,null,null,null,null,null,null,null,null,null,null,null,null,null,null," No",null,null," No"]
[null,null,null,null,null,null,null,null,null,null,null,null,null,null,null,null,null,null,null,"",null,null,null,null,null,null,null," Yes",null,null," Yes"]
[null,null,null,null,null,null,null,null,null,null,null,null,null,null,null,null,null,null,null,null,null,null,null,null,null,null,null," No",null,null," No"]
[null,null,null,null,null,null,null,null,null,null,null,null,null,null,null,null,null,null,null,"",null,null,null,null,null,null,null," Yes",null,null," Yes"]
[null,null,null,null,null,null,null,null,null,null,null,null,null,null,null,null,null,null,null,null,null,null,null,null,null,null,null," No",null,null," No"]
[null,null,null,null,null,null,null,null,null,null,null,null,null,null,null,null,null,null,null,"",null,null,null,null,null,null,null," Yes",null,null," Yes"]
[null,null,null,null,null,null,null,null,null,null,null,null,null,null,null,null,null,null,null,null,null,null,null,null,null,null,null," No",null,null," No"]
[null,null,null,null,null,null,null,null,null,null,null,null,null,null,null,null,null,null,null,"",null,null,null,null,null,null,null," Yes",null,null," Yes"]
[null,null,null,null,null,null,null,null,null,null,null,null,null,null,null,null,null,null,null,null,null,null,null,null,null,null,null," No",null,null," No"]
["     ",null,null,null,"     ",null,"Total Credit/Clock Hours:",null,null,null,null,null,null,null,{"$f":"SUM(O205:P222)","v":0},null,null,null,null,"Date Final Grades/Transcript/\nRemedial levels reviewed and in file:"]
[null,"Part Time",null,null,null,null," Full Time ",null,null,null,null,null,null,null,null,null,null,null,null,"End of semester/module remedial level: "]
[]
["Curriculum Outline",null,null,null,null,null,null,null,null,null,null,null,null,null,null,null,null,null,null,"Benchmark Tracking"]
["Semester/Module Time Frame:",null,null,null,null,null,null,null,null,null,null,null,null,null,null,null,null,null,null,"Must be evaluated at intervals of no more than 60 days."]
["Year:"]
["Course\n#",null,null,"Course/Program Title",null,null,null,null,null,null,null,null,null,null,"Credit/\nClock\nHours",null,"Final\nGrade",null,null,"Date of\nBenchmark\nReview\nPeriod",null,null,"Type of\nDocumentation to\nVerify Progress",null,null,null,"Good\nAcademic\nStanding",null,null,"Training Will\nBe Completed \nwithin Approved\nTime Frame",null,null,"Warning\nIssued",null,null,"Date REP\nModified/\nAmended\n(if applicable)"]
[null,null,null,null,null,null,null,null,null,null,null,null,null,null,null,null,null,null,null,"",null,null,null,null,null,null,null," Yes",null,null," Yes"]
[null,null,null,null,null,null,null,null,null,null,null,null,null,null,null,null,null,null,null,null,null,null,null,null,null,null,null," No",null,null," No"]
[null,null,null,null,null,null,null,null,null,null,null,null,null,null,null,null,null,null,null,"",null,null,null,null,null,null,null," Yes",null,null," Yes"]
[null,null,null,null,null,null,null,null,null,null,null,null,null,null,null,null,null,null,null,null,null,null,null,null,null,null,null," No",null,null," No"]
[null,null,null,null,null,null,null,null,null,null,null,null,null,null,null,null,null,null,null,"",null,null,null,null,null,null,null," Yes",null,null," Yes"]
[null,null,null,null,null,null,null,null,null,null,null,null,null,null,null,null,null,null,null,null,null,null,null,null,null,null,null," No",null,null," No"]
[null,null,null,null,null,null,null,null,null,null,null,null,null,null,null,null,null,null,null,"",null,null,null,null,null,null,null," Yes",null,null," Yes"]
[null,null,null,null,null,null,null,null,null,null,null,null,null,null,null,null,null,null,null,null,null,null,null,null,null,null,null," No",null,null," No"]
[null,null,null,null,null,null,null,null,null,null,null,null,null,null,null,null,null,null,null,"",null,null,null,null,null,null,null," Yes",null,null," Yes"]
[null,null,null,null,null,null,null,null,null,null,null,null,null,null,null,null,null,null,null,null,null,null,null,null,null,null,null," No",null,null," No"]
[null,null,null,null,null,null,null,null,null,null,null,null,null,null,null,null,null,null,null,"",null,null,null,null,null,null,null," Yes",null,null," Yes"]
[null,null,null,null,null,null,null,null,null,null,null,null,null,null,null,null,null,null,null,null,null,null,null,null,null,null,null," No",null,null," No"]
[null,null,null,null,null,null,null,null,null,null,null,null,null,null,null,null,null,null,null,"",null,null,null,null,null,null,null," Yes",null,null," Yes"]
[null,null,null,null,null,null,null,null,null,null,null,null,null,null,null,null,null,null,null,null,null,null,null,null,null,null,null," No",null,null," No"]
[null,null,null,null,null,null,null,null,null,null,null,null,null,null,null,null,null,null,null,"",null,null,null,null,null,null,null," Yes",null,null," Yes"]
[null,null,null,null,null,null,null,null,null,null,null,null,null,null,null,null,null,null,null,null,null,null,null,null,null,null,null," No",null,null," No"]
[null,null,null,null,null,null,null,null,null,null,null,null,null,null,null,null,null,null,null,"",null,null,null,null,null,null,null," Yes",null,null," Yes"]
[null,null,null,null,null,null,null,null,null,null,null,null,null,null,null,null,null,null,null,null,null,null,null,null,null,null,null," No",null,null," No"]
["     ",null,null,null,"     ",null,"Total Credit/Clock Hours:",null,null,null,null,null,null,null,{"$f":"SUM(O230:P247)","v":0},null,null,null,null,"Date Final Grades/Transcript/\nRemedial levels reviewed and in file:"]
[null,"Part Time",null,null,null,null," Full Time ",null,null,null,null,null,null,null,null,null,null,null,null,"End of semester/module remedial level: "]
[]
["Curriculum Outline",null,null,null,null,null,null,null,null,null,null,null,null,null,null,null,null,null,null,"Benchmark Tracking"]
["Semester/Module Time Frame:",null,null,null,null,null,null,null,null,null,null,null,null,null,null,null,null,null,null,"Must be evaluated at intervals of no more than 60 days."]
["Year:"]
["Course\n#",null,null,"Course/Program Title",null,null,null,null,null,null,null,null,null,null,"Credit/\nClock\nHours",null,"Final\nGrade",null,null,"Date of\nBenchmark\nReview\nPeriod",null,null,"Type of\nDocumentation to\nVerify Progress",null,null,null,"Good\nAcademic\nStanding",null,null,"Training Will\nBe Completed \nwithin Approved\nTime Frame",null,null,"Warning\nIssued",null,null,"Date REP\nModified/\nAmended\n(if applicable)"]
[null,null,null,null,null,null,null,null,null,null,null,null,null,null,null,null,null,null,null,"",null,null,null,null,null,null,null," Yes",null,null," Yes"]
[null,null,null,null,null,null,null,null,null,null,null,null,null,null,null,null,null,null,null,null,null,null,null,null,null,null,null," No",null,null," No"]
[null,null,null,null,null,null,null,null,null,null,null,null,null,null,null,null,null,null,null,"",null,null,null,null,null,null,null," Yes",null,null," Yes"]
[null,null,null,null,null,null,null,null,null,null,null,null,null,null,null,null,null,null,null,null,null,null,null,null,null,null,null," No",null,null," No"]
[null,null,null,null,null,null,null,null,null,null,null,null,null,null,null,null,null,null,null,"",null,null,null,null,null,null,null," Yes",null,null," Yes"]
[null,null,null,null,null,null,null,null,null,null,null,null,null,null,null,null,null,null,null,null,null,null,null,null,null,null,null," No",null,null," No"]
[null,null,null,null,null,null,null,null,null,null,null,null,null,null,null,null,null,null,null,"",null,null,null,null,null,null,null," Yes",null,null," Yes"]
[null,null,null,null,null,null,null,null,null,null,null,null,null,null,null,null,null,null,null,null,null,null,null,null,null,null,null," No",null,null," No"]
[null,null,null,null,null,null,null,null,null,null,null,null,null,null,null,null,null,null,null,"",null,null,null,null,null,null,null," Yes",null,null," Yes"]
[null,null,null,null,null,null,null,null,null,null,null,null,null,null,null,null,null,null,null,null,null,null,null,null,null,null,null," No",null,null," No"]
[null,null,null,null,null,null,null,null,null,null,null,null,null,null,null,null,null,null,null,"",null,null,null,null,null,null,null," Yes",null,null," Yes"]
[null,null,null,null,null,null,null,null,null,null,null,null,null,null,null,null,null,null,null,null,null,null,null,null,null,null,null," No",null,null," No"]
[null,null,null,null,null,null,null,null,null,null,null,null,null,null,null,null,null,null,null,"",null,null,null,null,null,null,null," Yes",null,null," Yes"]
[null,null,null,null,null,null,null,null,null,null,null,null,null,null,null,null,null,null,null,null,null,null,null,null,null,null,null," No",null,null," No"]
[null,null,null,null,null,null,null,null,null,null,null,null,null,null,null,null,null,null,null,"",null,null,null,null,null,null,null," Yes",null,null," Yes"]
[null,null,null,null,null,null,null,null,null,null,null,null,null,null,null,null,null,null,null,null,null,null,null,null,null,null,null," No",null,null," No"]
[null,null,null,null,null,null,null,null,null,null,null,null,null,null,null,null,null,null,null,"",null,null,null,null,null,null,null," Yes",null,null," Yes"]
[null,null,null,null,null,null,null,null,null,null,null,null,null,null,null,null,null,null,null,null,null,null,null,null,null,null,null," No",null,null," No"]
["     ",null,null,null,"     ",null,"Total Credit/Clock Hours:",null,null,null,null,null,null,null,{"$f":"SUM(O255:P272)","v":0},null,null,null,null,"Date Final Grades/Transcript/\nRemedial levels reviewed and in file:"]
[null,"Part Time",null,null,null,null," Full Time ",null,null,null,null,null,null,null,null,null,null,null,null,"End of semester/module remedial level: "]
[]
["Curriculum Outline",null,null,null,null,null,null,null,null,null,null,null,null,null,null,null,null,null,null,"Benchmark Tracking"]
["Semester/Module Time Frame:",null,null,null,null,null,null,null,null,null,null,null,null,null,null,null,null,null,null,"Must be evaluated at intervals of no more than 60 days."]
["Year:"]
["Course\n#",null,null,"Course/Program Title",null,null,null,null,null,null,null,null,null,null,"Credit/\nClock\nHours",null,"Final\nGrade",null,null,"Date of\nBenchmark\nReview\nPeriod",null,null,"Type of\nDocumentation to\nVerify Progress",null,null,null,"Good\nAcademic\nStanding",null,null,"Training Will\nBe Completed \nwithin Approved\nTime Frame",null,null,"Warning\nIssued",null,null,"Date REP\nModified/\nAmended\n(if applicable)"]
[null,null,null,null,null,null,null,null,null,null,null,null,null,null,null,null,null,null,null,"",null,null,null,null,null,null,null," Yes",null,null," Yes"]
[null,null,null,null,null,null,null,null,null,null,null,null,null,null,null,null,null,null,null,null,null,null,null,null,null,null,null," No",null,null," No"]
[null,null,null,null,null,null,null,null,null,null,null,null,null,null,null,null,null,null,null,"",null,null,null,null,null,null,null," Yes",null,null," Yes"]
[null,null,null,null,null,null,null,null,null,null,null,null,null,null,null,null,null,null,null,null,null,null,null,null,null,null,null," No",null,null," No"]
[null,null,null,null,null,null,null,null,null,null,null,null,null,null,null,null,null,null,null,"",null,null,null,null,null,null,null," Yes",null,null," Yes"]
[null,null,null,null,null,null,null,null,null,null,null,null,null,null,null,null,null,null,null,null,null,null,null,null,null,null,null," No",null,null," No"]
[null,null,null,null,null,null,null,null,null,null,null,null,null,null,null,null,null,null,null,"",null,null,null,null,null,null,null," Yes",null,null," Yes"]
[null,null,null,null,null,null,null,null,null,null,null,null,null,null,null,null,null,null,null,null,null,null,null,null,null,null,null," No",null,null," No"]
[null,null,null,null,null,null,null,null,null,null,null,null,null,null,null,null,null,null,null,"",null,null,null,null,null,null,null," Yes",null,null," Yes"]
[null,null,null,null,null,null,null,null,null,null,null,null,null,null,null,null,null,null,null,null,null,null,null,null,null,null,null," No",null,null," No"]
[null,null,null,null,null,null,null,null,null,null,null,null,null,null,null,null,null,null,null,"",null,null,null,null,null,null,null," Yes",null,null," Yes"]
[null,null,null,null,null,null,null,null,null,null,null,null,null,null,null,null,null,null,null,null,null,null,null,null,null,null,null," No",null,null," No"]
[null,null,null,null,null,null,null,null,null,null,null,null,null,null,null,null,null,null,null,"",null,null,null,null,null,null,null," Yes",null,null," Yes"]
[null,null,null,null,null,null,null,null,null,null,null,null,null,null,null,null,null,null,null,null,null,null,null,null,null,null,null," No",null,null," No"]
[null,null,null,null,null,null,null,null,null,null,null,null,null,null,null,null,null,null,null,"",null,null,null,null,null,null,null," Yes",null,null," Yes"]
[null,null,null,null,null,null,null,null,null,null,null,null,null,null,null,null,null,null,null,null,null,null,null,null,null,null,null," No",null,null," No"]
[null,null,null,null,null,null,null,null,null,null,null,null,null,null,null,null,null,null,null,"",null,null,null,null,null,null,null," Yes",null,null," Yes"]
[null,null,null,null,null,null,null,null,null,null,null,null,null,null,null,null,null,null,null,null,null,null,null,null,null,null,null," No",null,null," No"]
["     ",null,null,null,"     ",null,"Total Credit/Clock Hours:",null,null,null,null,null,null,null,{"$f":"SUM(O280:P297)","v":0},null,null,null,null,"Date Final Grades/Transcript/\nRemedial levels reviewed and in file:"]
[null,"Part Time",null,null,null,null," Full Time ",null,null,null,null,null,null,null,null,null,null,null,null,"End of semester/module remedial level: "]
[]
["Curriculum Outline",null,null,null,null,null,null,null,null,null,null,null,null,null,null,null,null,null,null,"Benchmark Tracking"]
["Semester/Module Time Frame:",null,null,null,null,null,null,null,null,null,null,null,null,null,null,null,null,null,null,"Must be evaluated at intervals of no more than 60 days."]
["Year:"]
["Course\n#",null,null,"Course/Program Title",null,null,null,null,null,null,null,null,null,null,"Credit/\nClock\nHours",null,"Final\nGrade",null,null,"Date of\nBenchmark\nReview\nPeriod",null,null,"Type of\nDocumentation to\nVerify Progress",null,null,null,"Good\nAcademic\nStanding",null,null,"Training Will\nBe Completed \nwithin Approved\nTime Frame",null,null,"Warning\nIssued",null,null,"Date REP\nModified/\nAmended\n(if applicable)"]
[null,null,null,null,null,null,null,null,null,null,null,null,null,null,null,null,null,null,null,"",null,null,null,null,null,null,null," Yes",null,null," Yes"]
[null,null,null,null,null,null,null,null,null,null,null,null,null,null,null,null,null,null,null,null,null,null,null,null,null,null,null," No",null,null," No"]
[null,null,null,null,null,null,null,null,null,null,null,null,null,null,null,null,null,null,null,"",null,null,null,null,null,null,null," Yes",null,null," Yes"]
[null,null,null,null,null,null,null,null,null,null,null,null,null,null,null,null,null,null,null,null,null,null,null,null,null,null,null," No",null,null," No"]
[null,null,null,null,null,null,null,null,null,null,null,null,null,null,null,null,null,null,null,"",null,null,null,null,null,null,null," Yes",null,null," Yes"]
[null,null,null,null,null,null,null,null,null,null,null,null,null,null,null,null,null,null,null,null,null,null,null,null,null,null,null," No",null,null," No"]
[null,null,null,null,null,null,null,null,null,null,null,null,null,null,null,null,null,null,null,"",null,null,null,null,null,null,null," Yes",null,null," Yes"]
[null,null,null,null,null,null,null,null,null,null,null,null,null,null,null,null,null,null,null,null,null,null,null,null,null,null,null," No",null,null," No"]
[null,null,null,null,null,null,null,null,null,null,null,null,null,null,null,null,null,null,null,"",null,null,null,null,null,null,null," Yes",null,null," Yes"]
[null,null,null,null,null,null,null,null,null,null,null,null,null,null,null,null,null,null,null,null,null,null,null,null,null,null,null," No",null,null," No"]
[null,null,null,null,null,null,null,null,null,null,null,null,null,null,null,null,null,null,null,"",null,null,null,null,null,null,null," Yes",null,null," Yes"]
[null,null,null,null,null,null,null,null,null,null,null,null,null,null,null,null,null,null,null,null,null,null,null,null,null,null,null," No",null,null," No"]
[null,null,null,null,null,null,null,null,null,null,null,null,null,null,null,null,null,null,null,"",null,null,null,null,null,null,null," Yes",null,null," Yes"]
[null,null,null,null,null,null,null,null,null,null,null,null,null,null,null,null,null,null,null,null,null,null,null,null,null,null,null," No",null,null," No"]
[null,null,null,null,null,null,null,null,null,null,null,null,null,null,null,null,null,null,null,"",null,null,null,null,null,null,null," Yes",null,null," Yes"]
[null,null,null,null,null,null,null,null,null,null,null,null,null,null,null,null,null,null,null,null,null,null,null,null,null,null,null," No",null,null," No"]
[null,null,null,null,null,null,null,null,null,null,null,null,null,null,null,null,null,null,null,"",null,null,null,null,null,null,null," Yes",null,null," Yes"]
[null,null,null,null,null,null,null,null,null,null,null,null,null,null,null,null,null,null,null,null,null,null,null,null,null,null,null," No",null,null," No"]
["     ",null,null,null,"     ",null,"Total Credit/Clock Hours:",null,null,null,null,null,null,null,{"$f":"SUM(O305:P322)","v":0},null,null,null,null,"Date Final Grades/Transcript/\nRemedial levels reviewed and in file:"]
[null,"Part Time",null,null,null,null," Full Time ",null,null,null,null,null,null,null,null,null,null,null,null,"End of semester/module remedial level: "]
[]
["Curriculum Outline",null,null,null,null,null,null,null,null,null,null,null,null,null,null,null,null,null,null,"Benchmark Tracking"]
["Semester/Module Time Frame:",null,null,null,null,null,null,null,null,null,null,null,null,null,null,null,null,null,null,"Must be evaluated at intervals of no more than 60 days."]
["Year:"]
["Course\n#",null,null,"Course/Program Title",null,null,null,null,null,null,null,null,null,null,"Credit/\nClock\nHours",null,"Final\nGrade",null,null,"Date of\nBenchmark\nReview\nPeriod",null,null,"Type of\nDocumentation to\nVerify Progress",null,null,null,"Good\nAcademic\nStanding",null,null,"Training Will\nBe Completed \nwithin Approved\nTime Frame",null,null,"Warning\nIssued",null,null,"Date REP\nModified/\nAmended\n(if applicable)"]
[null,null,null,null,null,null,null,null,null,null,null,null,null,null,null,null,null,null,null,"",null,null,null,null,null,null,null," Yes",null,null," Yes"]
[null,null,null,null,null,null,null,null,null,null,null,null,null,null,null,null,null,null,null,null,null,null,null,null,null,null,null," No",null,null," No"]
[null,null,null,null,null,null,null,null,null,null,null,null,null,null,null,null,null,null,null,"",null,null,null,null,null,null,null," Yes",null,null," Yes"]
[null,null,null,null,null,null,null,null,null,null,null,null,null,null,null,null,null,null,null,null,null,null,null,null,null,null,null," No",null,null," No"]
[null,null,null,null,null,null,null,null,null,null,null,null,null,null,null,null,null,null,null,"",null,null,null,null,null,null,null," Yes",null,null," Yes"]
[null,null,null,null,null,null,null,null,null,null,null,null,null,null,null,null,null,null,null,null,null,null,null,null,null,null,null," No",null,null," No"]
[null,null,null,null,null,null,null,null,null,null,null,null,null,null,null,null,null,null,null,"",null,null,null,null,null,null,null," Yes",null,null," Yes"]
[null,null,null,null,null,null,null,null,null,null,null,null,null,null,null,null,null,null,null,null,null,null,null,null,null,null,null," No",null,null," No"]
[null,null,null,null,null,null,null,null,null,null,null,null,null,null,null,null,null,null,null,"",null,null,null,null,null,null,null," Yes",null,null," Yes"]
[null,null,null,null,null,null,null,null,null,null,null,null,null,null,null,null,null,null,null,null,null,null,null,null,null,null,null," No",null,null," No"]
[null,null,null,null,null,null,null,null,null,null,null,null,null,null,null,null,null,null,null,"",null,null,null,null,null,null,null," Yes",null,null," Yes"]
[null,null,null,null,null,null,null,null,null,null,null,null,null,null,null,null,null,null,null,null,null,null,null,null,null,null,null," No",null,null," No"]
[null,null,null,null,null,null,null,null,null,null,null,null,null,null,null,null,null,null,null,"",null,null,null,null,null,null,null," Yes",null,null," Yes"]
[null,null,null,null,null,null,null,null,null,null,null,null,null,null,null,null,null,null,null,null,null,null,null,null,null,null,null," No",null,null," No"]
[null,null,null,null,null,null,null,null,null,null,null,null,null,null,null,null,null,null,null,"",null,null,null,null,null,null,null," Yes",null,null," Yes"]
[null,null,null,null,null,null,null,null,null,null,null,null,null,null,null,null,null,null,null,null,null,null,null,null,null,null,null," No",null,null," No"]
[null,null,null,null,null,null,null,null,null,null,null,null,null,null,null,null,null,null,null,"",null,null,null,null,null,null,null," Yes",null,null," Yes"]
[null,null,null,null,null,null,null,null,null,null,null,null,null,null,null,null,null,null,null,null,null,null,null,null,null,null,null," No",null,null," No"]
["     ",null,null,null,"     ",null,"Total Credit/Clock Hours:",null,null,null,null,null,null,null,{"$f":"SUM(O330:P347)","v":0},null,null,null,null,"Date Final Grades/Transcript/\nRemedial levels reviewed and in file:"]
[null,"Part Time",null,null,null,null," Full Time ",null,null,null,null,null,null,null,null,null,null,null,null,"End of semester/module remedial level: "]
[]
["Curriculum Outline",null,null,null,null,null,null,null,null,null,null,null,null,null,null,null,null,null,null,"Benchmark Tracking"]
["Semester/Module Time Frame:",null,null,null,null,null,null,null,null,null,null,null,null,null,null,null,null,null,null,"Must be evaluated at intervals of no more than 60 days."]
["Year:"]
["Course\n#",null,null,"Course/Program Title",null,null,null,null,null,null,null,null,null,null,"Credit/\nClock\nHours",null,"Final\nGrade",null,null,"Date of\nBenchmark\nReview\nPeriod",null,null,"Type of\nDocumentation to\nVerify Progress",null,null,null,"Good\nAcademic\nStanding",null,null,"Training Will\nBe Completed \nwithin Approved\nTime Frame",null,null,"Warning\nIssued",null,null,"Date REP\nModified/\nAmended\n(if applicable)"]
[null,null,null,null,null,null,null,null,null,null,null,null,null,null,null,null,null,null,null,"",null,null,null,null,null,null,null," Yes",null,null," Yes"]
[null,null,null,null,null,null,null,null,null,null,null,null,null,null,null,null,null,null,null,null,null,null,null,null,null,null,null," No",null,null," No"]
[null,null,null,null,null,null,null,null,null,null,null,null,null,null,null,null,null,null,null,"",null,null,null,null,null,null,null," Yes",null,null," Yes"]
[null,null,null,null,null,null,null,null,null,null,null,null,null,null,null,null,null,null,null,null,null,null,null,null,null,null,null," No",null,null," No"]
[null,null,null,null,null,null,null,null,null,null,null,null,null,null,null,null,null,null,null,"",null,null,null,null,null,null,null," Yes",null,null," Yes"]
[null,null,null,null,null,null,null,null,null,null,null,null,null,null,null,null,null,null,null,null,null,null,null,null,null,null,null," No",null,null," No"]
[null,null,null,null,null,null,null,null,null,null,null,null,null,null,null,null,null,null,null,"",null,null,null,null,null,null,null," Yes",null,null," Yes"]
[null,null,null,null,null,null,null,null,null,null,null,null,null,null,null,null,null,null,null,null,null,null,null,null,null,null,null," No",null,null," No"]
[null,null,null,null,null,null,null,null,null,null,null,null,null,null,null,null,null,null,null,"",null,null,null,null,null,null,null," Yes",null,null," Yes"]
[null,null,null,null,null,null,null,null,null,null,null,null,null,null,null,null,null,null,null,null,null,null,null,null,null,null,null," No",null,null," No"]
[null,null,null,null,null,null,null,null,null,null,null,null,null,null,null,null,null,null,null,"",null,null,null,null,null,null,null," Yes",null,null," Yes"]
[null,null,null,null,null,null,null,null,null,null,null,null,null,null,null,null,null,null,null,null,null,null,null,null,null,null,null," No",null,null," No"]
[null,null,null,null,null,null,null,null,null,null,null,null,null,null,null,null,null,null,null,"",null,null,null,null,null,null,null," Yes",null,null," Yes"]
[null,null,null,null,null,null,null,null,null,null,null,null,null,null,null,null,null,null,null,null,null,null,null,null,null,null,null," No",null,null," No"]
[null,null,null,null,null,null,null,null,null,null,null,null,null,null,null,null,null,null,null,"",null,null,null,null,null,null,null," Yes",null,null," Yes"]
[null,null,null,null,null,null,null,null,null,null,null,null,null,null,null,null,null,null,null,null,null,null,null,null,null,null,null," No",null,null," No"]
[null,null,null,null,null,null,null,null,null,null,null,null,null,null,null,null,null,null,null,"",null,null,null,null,null,null,null," Yes",null,null," Yes"]
[null,null,null,null,null,null,null,null,null,null,null,null,null,null,null,null,null,null,null,null,null,null,null,null,null,null,null," No",null,null," No"]
["     ",null,null,null,"     ",null,"Total Credit/Clock Hours:",null,null,null,null,null,null,null,{"$f":"SUM(O355:P372)","v":0},null,null,null,null,"Date Final Grades/Transcript/\nRemedial levels reviewed and in file:"]
[null,"Part Time",null,null,null,null," Full Time ",null,null,null,null,null,null,null,null,null,null,null,null,"End of semester/module remedial level: "]

{"sheet":"Subsistence Worksheet Location1","index":1,"n_rows":31,"n_cols":12,"rows_kept":31,"cut":false,"hidden":false,"merged":[[0,1,0,6],[0,7,0,8],[1,0,1,8],[2,0,2,1],[2,3,2,5],[2,7,2,8],[12,0,12,9],[3,0,3,9],[4,0,4,8],[5,0,5,8],[6,0,6,8],[7,0,7,8],[8,0,8,9],[9,0,9,1],[9,3,9,5],[9,7,9,8],[10,0,10,8],[11,0,11,8],[19,0,19,9],[13,0,13,1],[13,3,13,5],[13,7,13,8],[14,0,14,1],[14,3,14,5],[14,7,14,8],[15,0,15,5],[15,7,15,8],[16,0,16,8],[17,0,17,8],[18,0,18,8],[23,0,23,8],[28,0,28,9],[30,0,31,9],[20,0,20,9],[21,0,21,5],[21,6,21,9],[22,0,22,1],[22,3,22,5],[22,7,22,8]]}
["Name:",{"$f":"'REP-1'!$D$4","v":0},null,null,null,null,null,"TWIST ID:",null,{"$f":"'REP-1'!$AI$4","v":0}]
["Is the distance from the applicant’s home to training facility greater than 25 miles one way?  ",null,null,null,null,null,null,null,null,"yes"]
["Number of training days per week:",null,null,"Number of actual weeks in training:                        ",null,null,null,"Total Days in Training:",null,{"$f":"C3*G3","v":0}]
["MILEAGE"]
["Mileage shortest distance using www.mapquest.com round-trip miles:"]
["Federal Privately Owned Vehicle (POV) Mileage Rate from www.gsa.gov:"]
["Total Daily Mileage Cost: ",null,null,null,null,null,null,null,null,{"$f":"J5*J6","v":0}]
["Total Mileage Cost: ",null,null,null,null,null,null,null,null,{"$f":"J7*J3","v":0}]
["PER DIEM - To calculate the prevailing per diem visit www.gsa.gov and enter zip code or city, state.  "]
["Daily Max Lodging Amount: ",null,null,"Daily Max Meals Amount:                      ",null,null,null,"Total Daily Per Diem Amount:",null,{"$f":"SUM(C10,G10)","v":0}]
["50% of prevailing per diem (Daily Amount Allowed): ",null,null,null,null,null,null,null,null,{"$f":"J10/2","v":0}]
["Total Per Diem Cost: ",null,null,null,null,null,null,null,null,{"$f":"J11*J3","v":0}]
["Room & Board - This is only used if the College/University has Housing (Room/Board) available. "]
["Number of training days per week:",null,null,"Number of weeks for one semester. ",null,null,null,"Total Training Days for one semester:",null,{"$f":"C14*G14","v":0}]
["Semester Lodging (Room) Amount: ",null,null,"Semester Meals*(Board)  Amount:                      ",null,null,null,"Total Semester Costs:",null,{"$f":"SUM(C15,G15)","v":0}]
["*If meals (boarding) are not provided on campus, enter the daily max meals amount.                    ",null,null,null,null,null,null,"Total Cost of Per Diem Meals (Enter this  in Semester Meals Amount above):",null,{"$f":"G16/2*J14","v":0}]
["Daily Room & Board Cost: ",null,null,null,null,null,null,null,null,{"$f":"IF(J15=0,\"\",J15/J14)","v":""}]
["Total Room & Board Cost: ",null,null,null,null,null,null,null,null,{"$f":"IF(ISERROR(J17*J3),\"\",J17*J3)","v":""}]
[" Lowest Cost Option:   ",null,null,null,null,null,null,null,null,{"$f":"MIN(K19,L19)","v":0},{"$f":"MIN(J8,J12)","v":0},{"$f":"IF(J18>0,J18,\"\")","v":""}]
["ROUND-TRIP CALCULATIONS - Only one round-trip payment is allowed if the customer is staying at the training site or if TAA is paying Room and Board (actual cost) at lowest cost option."]
["Compare the lowest cost option of all modes of transportation.  Once the lowest cost option is selected pay one trip to training provider and one trip back.  This cost will be added to the Total Transportation/Subsistence Payment. "]
[" Lowest Cost option is (i.e. mileage, train, bus, airfare, etc.):"]
["Trip to training site :",null,null,"Trip back to residence:",null,null,null,"Total Round-Trip",null,{"$f":"SUM(C23,G23)","v":0}]
["Lowest Cost Option + Round-Trip Payment (If applicable):  ",null,null,null,null,null,null,null,null,{"$f":"SUM(J19,J23)","v":0}]
[]
[]
[]
[]
[]
[]
["Note:  Be sure and transfer total cost of transportation/subsitence payment into section 8: Estimated Cost of Training of the REP."]

{"sheet":"Subsistence Worksheet Location2","index":2,"n_rows":31,"n_cols":12,"rows_kept":31,"cut":false,"hidden":false,"merged":[[1,0,1,8],[2,0,2,1],[2,3,2,5],[2,7,2,8],[12,0,12,9],[3,0,3,9],[4,0,4,8],[5,0,5,8],[6,0,6,8],[7,0,7,8],[8,0,8,9],[9,0,9,1],[9,3,9,5],[9,7,9,8],[10,0,10,8],[11,0,11,8],[19,0,19,9],[13,0,13,1],[13,3,13,5],[13,7,13,8],[14,0,14,1],[14,3,14,5],[14,7,14,8],[30,0,31,9],[0,1,0,6],[0,7,0,8],[21,0,21,5],[21,6,21,9],[20,0,20,9],[22,0,22,1],[22,3,22,5],[22,7,22,8],[23,0,23,8],[28,0,28,9],[15,0,15,5],[15,7,15,8],[16,0,16,8],[17,0,17,8],[18,0,18,8]]}
["Name:",{"$f":"'REP-1'!$D$4","v":0},null,null,null,null,null,"TWIST ID:",null,{"$f":"'REP-1'!$AI$4","v":0}]
["Is the distance from the applicant’s home to training facility greater than 25 miles one way?  ",null,null,null,null,null,null,null,null,"yes"]
["Number of training days per week:",null,null,"Number of actual weeks in training:                        ",null,null,null,"Total Days in Training:",null,{"$f":"C3*G3","v":0}]
["MILEAGE"]
["Mileage shortest distance using www.mapquest.com round-trip miles:"]
["Federal Privately Owned Vehicle (POV) Mileage Rate from www.gsa.gov:"]
["Total Daily Mileage Cost: ",null,null,null,null,null,null,null,null,{"$f":"J5*J6","v":0}]
["Total Mileage Cost: ",null,null,null,null,null,null,null,null,{"$f":"J7*J3","v":0}]
["PER DIEM - To calculate the prevailing per diem visit www.gsa.gov and enter zip code or city, state.  "]
["Daily Max Lodging Amount: ",null,null,"Daily Max Meals Amount:                      ",null,null,null,"Total Daily Per Diem Amount:",null,{"$f":"SUM(C10,G10)","v":0}]
["50% of prevailing per diem (Daily Amount Allowed): ",null,null,null,null,null,null,null,null,{"$f":"J10/2","v":0}]
["Total Per Diem Cost: ",null,null,null,null,null,null,null,null,{"$f":"J11*J3","v":0}]
["Room & Board - This is only used if the College/University has Housing (Room/Board) available. "]
["Number of training days per week:",null,null,"Number of weeks for one semester. ",null,null,null,"Total Training Days for one semester:",null,{"$f":"C14*G14","v":0}]
["Semester Lodging (Room) Amount: ",null,null,"Semester Meals*(Board)  Amount:                      ",null,null,null,"Total Semester Costs:",null,{"$f":"SUM(C15,G15)","v":0}]
["*If meals (boarding) are not provided on campus, enter the daily max meals amount.                    ",null,null,null,null,null,null,"Total Cost of Per Diem Meals (Enter this  in Semester Meals Amount above):",null,{"$f":"G16/2*J14","v":0}]
["Daily Room & Board Cost: ",null,null,null,null,null,null,null,null,{"$f":"IF(J15=0,\"\",J15/J14)","v":""}]
["Total Room & Board Cost: ",null,null,null,null,null,null,null,null,{"$f":"IF(ISERROR(J17*J3),\"\",J17*J3)","v":""}]
[" Lowest Cost Option:   ",null,null,null,null,null,null,null,null,{"$f":"MIN(K19,L19)","v":0},{"$f":"MIN(J8,J12)","v":0},{"$f":"IF(J18>0,J18,\"\")","v":""}]
["ROUND-TRIP CALCULATIONS - Only one round-trip payment is allowed if the customer is staying at the training site or if TAA is paying Room and Board (actual cost) at lowest cost option."]
["Compare the lowest cost option of all modes of transportation.  Once the lowest cost option is selected pay one trip to training provider and one trip back.  This cost will be added to the Total Transportation/Subsistence Payment. "]
[" Lowest Cost option is (i.e. mileage, train, bus, airfare, etc.):"]
["Trip to training site :",null,null,"Trip back to residence:",null,null,null,"Total Round-Trip",null,{"$f":"SUM(C23,G23)","v":0}]
["Lowest Cost Option + Round-Trip Payment (If applicable):  ",null,null,null,null,null,null,null,null,{"$f":"SUM(J19,J23)","v":0}]
[]
[]
[]
[]
[]
[]
["Note:  Be sure and transfer total cost of transportation/subsitence payment into section 8: Estimated Cost of Training of the REP."]